bitfinex/quotes_ETHUSD_20250415
["timestamp","ask_amount","ask_price","bid_price","bid_amount"]
[1744711383678,59.7638596,1648.8,1648.7,0.2]
[1744711384007,65.8288696,1648.8,1648.7,0.2]
[1744711384375,6.82905,1648.6,1648.5,0.2]
[1744711384708,12.2105196,1648.7,1648.5,0.2]
[1744711384901,12.13109,1648.7,1648.5,0.2]
[1744711385203,53.5653,1648.8,1648.6,0.2]
[1744711385505,53.5653,1648.8,1648.7,0.2]
[1744711385711,52.802,1648.8,1648.7,6.26538]
[1744711386088,52.802,1648.8,1648.7,6.60492206]
[1744711387207,52.802,1648.8,1648.7,0.53954206]
[1744711387794,59.67441,1648.8,1648.7,0.53954206]
[1744711388011,61.39135686,1648.8,1648.7,0.33954206]
[1744711388206,6.06538,1648.7,1648.6,0.2]
[1744711388879,6.82988,1648.7,1648.6,0.2]
[1744711389280,6.06575,1648.6,1648.5,0.2]
[1744711390106,6.06575,1648.6,1648.5,0.54016342]
[1744711391302,7.355313,1648.6,1648.5,0.54016342]
[1744711391482,7.355313,1648.6,1648.5,0.2]
[1744711393182,7.355313,1648.6,1648.5,0.54018866]
[1744711393910,8.109813,1648.6,1648.5,0.54018866]
[1744711394115,8.109813,1648.6,1648.5,0.2]
[1744711394816,6.06685,1648.3,1648.1,0.25]
[1744711395001,12.31272,1648.2,1648.1,0.05]
[1744711395202,12.31272,1648.2,1648.1,0.25]
[1744711395507,12.31272,1648.2,1648.1,0.05]
[1744711395681,12.31272,1648.2,1648.1,0.25]
[1744711395876,8.083457,1648.2,1648.1,0.25]
[1744711396077,12.31272,1648.2,1648.1,0.25]
[1744711396616,12.31272,1648.2,1648.1,0.05]
[1744711396914,12.31272,1648.2,1648.1,0.25]
[1744711397898,12.31272,1648.2,1648.1,0.05]
[1744711398100,14.75738,1648.2,1648.1,0.25]
[1744711398303,16.94939005,1648.2,1648.1,0.05]
[1744711398495,17.74259005,1648.2,1648.1,0.05]
[1744711398809,20.74259005,1648.2,1648.1,0.05]
[1744711400118,21.29259005,1648.2,1648.1,1e-05]
[1744711400631,20.74259005,1648.2,1648.1,1e-05]
[1744711401915,21.29259005,1648.2,1648.1,1e-05]
[1744711402142,21.75752041,1648.2,1648.1,1e-05]
[1744711402340,6.85463,1647.3,1647.2,0.2]
[1744711402633,5.492,1647.3,1647.2,0.2]
[1744711403192,11.56253,1647.3,1647.2,0.2]
[1744711404108,6.0709,1647.2,1647.1,0.25]
[1744711404327,6.8786,1647.2,1647.1,0.05]
[1744711404639,8.722713,1647.2,1647.1,0.05]
[1744711406740,6.07053,1647.3,1647.2,0.2]
[1744711406944,11.53353,1647.3,1647.2,0.2]
[1744711407331,5.463,1647.3,1647.2,6.2709]
[1744711407540,5.463,1647.3,1647.2,0.2]
[1744711408145,6.2756,1647.3,1647.2,0.2]
[1744711408459,18.31261,1647.3,1647.2,0.2]
[1744711408965,6.0709,1647.2,1647.1,0.05]
[1744711409442,6.8281,1647.2,1647.1,0.05]
[1744711411552,10.3781,1647.2,1647.1,0.05]
[1744711411765,12.91490412,1647.2,1647.1,0.05]
[1744711411972,9.91490412,1647.2,1647.1,0.05]
[1744711414473,6.0709,1647.2,1647.1,0.25]
[1744711415529,6.0709,1647.2,1647.1,0.05]
[1744711416881,6.836,1647.2,1647.1,0.05]
[1744711418188,7.386,1647.2,1647.1,0.05]
[1744711418334,10.386,1647.2,1647.1,0.05]
[1744711418529,14.08066512,1647.2,1647.1,0.05]
[1744711419645,6.07275,1646.7,1646.6,0.2]
[1744711419834,5.466,1646.7,1646.6,0.2]
[1744711420058,5.466,1646.7,1646.6,6.27312]
[1744711420388,5.466,1646.7,1646.6,0.2]
[1744711420951,11.53875,1646.7,1646.6,0.2]
[1744711421152,13.299865,1646.7,1646.6,0.2]
[1744711422276,7.227115,1646.7,1646.6,0.2]
[1744711422454,13.299865,1646.7,1646.6,0.2]
[1744711422858,5.466,1646.7,1646.6,6.27312]
[1744711423175,5.466,1646.7,1646.6,0.2]
[1744711425371,5.466,1646.7,1646.6,6.27312]
[1744711426191,5.466,1646.7,1646.6,0.2]
[1744711426509,11.53875,1646.7,1646.6,0.2]
[1744711426714,13.299873,1646.7,1646.6,0.2]
[1744711428222,13.299873,1646.7,1646.5,0.2]
[1744711428223,6.07312,1646.6,1646.5,0.2]
[1744711431267,6.07348,1646.5,1646.4,0.2]
[1744711431585,6.07312,1646.6,1646.5,0.2]
[1744711432610,6.07348,1646.5,1646.4,0.2]
[1744711432789,6.07436,1646.3,1646.1,0.25]
[1744711432992,2.64429,1646.5,1646.3,0.2]
[1744711433197,12.96969,1646.5,1646.4,0.2]
[1744711433524,18.43669,1646.5,1646.4,0.2]
[1744711434172,5.468,1646.5,1646.4,6.2738]
[1744711434588,5.468,1646.5,1646.4,0.2]
[1744711434789,5.468,1646.5,1646.4,6.27385]
[1744711434996,5.468,1646.5,1646.4,0.9627]
[1744711435306,5.468,1646.5,1646.4,7.03655]
[1744711435504,5.468,1646.5,1646.4,1.30277828]
[1744711435701,11.54148,1646.5,1646.4,1.30277828]
[1744711436053,5.468,1646.5,1646.4,0.54007828]
[1744711436256,12.695607,1646.5,1646.4,0.54007828]
[1744711436400,6.622127,1646.5,1646.4,0.54007828]
[1744711436738,12.695607,1646.5,1646.4,0.34007828]
[1744711437035,12.695607,1646.5,1646.4,0.54007828]
[1744711437232,6.622127,1646.5,1646.4,0.54007828]
[1744711437414,12.695607,1646.5,1646.4,0.34007828]
[1744711437625,12.695607,1646.5,1646.4,0.54007828]
[1744711437626,6.622127,1646.5,1646.4,0.54007828]
[1744711437827,12.695607,1646.5,1646.4,0.54007828]
[1744711438332,12.695607,1646.5,1646.4,0.2]
[1744711440329,18.769417,1646.5,1646.4,0.2]
[1744711441032,12.695607,1646.5,1646.4,0.2]
[1744711441236,5.468,1646.5,1646.4,0.2]
[1744711441631,11.54148,1646.5,1646.4,0.2]
[1744711441837,11.54148,1646.5,1646.4,0.54021011]
[1744711442025,5.468,1646.5,1646.4,0.54021011]
[1744711443343,5.468,1646.5,1646.4,6.61406011]
[1744711443509,5.468,1646.5,1646.4,7.43256011]
[1744711443706,47.357,1646.8,1646.7,7.09125]
[1744711444011,4.01151424,1647.2,1646.9,0.2]
[1744711444012,5.448,1647.0,1646.9,0.2]
[1744711444212,5.448,1647.0,1646.9,6.27201]
[1744711444760,5.448,1647.0,1646.9,7.03841]
[1744711445037,5.448,1647.0,1646.9,7.37863338]
[1744711447448,5.448,1647.0,1646.9,10.37863338]
[1744711447831,5.448,1647.0,1646.9,1.30662338]
[1744711448021,5.448,1647.0,1646.9,0.54022338]
[1744711448222,5.448,1647.0,1646.9,0.2]
[1744711448531,11.51964,1647.0,1646.9,0.2]
[1744711448735,14.04324,1647.0,1646.8,0.2]
[1744711449043,6.07217,1646.9,1646.8,0.2]
[1744711449219,7.9716,1647.0,1646.8,0.2]
[1744711449419,7.2071,1647.0,1646.9,0.2]
[1744711449619,13.27874,1647.0,1646.9,0.2]
[1744711450223,7.2071,1647.0,1646.9,0.2]
[1744711450448,5.448,1647.0,1646.9,0.2]
[1744711450744,11.51964,1647.0,1646.9,0.2]
[1744711451044,5.448,1647.0,1646.9,0.2]
[1744711452619,11.51964,1647.0,1646.9,0.2]
[1744711452944,5.448,1647.0,1646.9,0.2]
[1744711453143,5.9928,1647.0,1646.9,0.2]
[1744711453363,12.06444,1647.0,1646.9,0.2]
[1744711453847,6.07201,1646.9,1646.8,0.2]
[1744711455051,6.07238,1646.8,1646.7,0.2]
[1744711456653,6.88638,1646.8,1646.7,0.2]
[1744711456947,13.647698,1646.8,1646.7,0.2]
[1744711459220,6.07275,1646.7,1646.6,0.2]
[1744711460058,7.575018,1646.8,1646.6,0.2]
[1744711460220,6.07275,1646.7,1646.6,0.2]
[1744711460723,11.52075,1646.7,1646.6,0.2]
[1744711460923,14.0375828,1646.7,1646.6,0.2]
[1744711461866,5.448,1646.7,1646.6,1.0238]
[1744711462154,11.52075,1646.7,1646.6,0.2]
[1744711462354,11.52075,1646.7,1646.6,0.54010963]
[1744711463328,11.52075,1646.7,1646.6,0.2]
[1744711464660,5.448,1646.7,1646.6,0.2]
[1744711465451,11.52075,1646.7,1646.6,0.2]
[1744711465651,11.52075,1646.7,1646.6,0.54021495]
[1744711467067,5.448,1646.7,1646.6,0.54021495]
[1744711467370,5.448,1646.7,1646.6,8.15637445]
[1744711471875,5.448,1646.7,1646.6,11.15637445]
[1744711473754,5.448,1646.7,1646.6,7.41503495]
[1744711475166,5.448,1646.7,1646.6,1.34191495]
[1744711475980,5.448,1646.7,1646.6,0.54021495]
[1744711477372,11.52075,1646.7,1646.6,0.34021495]
[1744711477577,11.52075,1646.7,1646.6,0.54021495]
[1744711477741,7.37131321,1646.7,1646.6,0.54021495]
[1744711478275,11.52075,1646.7,1646.6,0.54021495]
[1744711478648,54.26064,1647.0,1646.9,0.2]
[1744711478834,54.26064,1647.0,1646.6,6.41319495]
[1744711478835,6.07201,1646.9,1646.8,0.2]
[1744711479040,6.89901,1646.9,1646.8,0.2]
[1744711480469,6.89901,1646.9,1646.7,0.2]
[1744711480470,6.07238,1646.8,1646.7,0.2]
[1744711480650,6.90205,1646.7,1646.6,0.2]
[1744711481449,6.07312,1646.6,1646.5,0.2]
[1744711481650,11.46812,1646.6,1646.5,0.2]
[1744711481849,11.46812,1646.6,1646.5,0.5407522]
[1744711484073,11.46812,1646.6,1646.5,0.3407522]
[1744711484275,14.6329,1646.6,1646.5,0.3407522]
[1744711484454,6.07348,1646.5,1646.4,0.2]
[1744711485275,6.85345,1646.4,1646.2,0.2]
[1744711485478,12.92748,1646.4,1646.3,0.2]
[1744711485791,6.07422,1646.3,1646.2,0.2]
[1744711485943,6.07422,1646.3,1646.1,0.05]
[1744711485944,6.07459,1646.2,1646.1,0.05]
[1744711486144,11.46959,1646.2,1646.1,0.05]
[1744711486344,12.23339,1646.2,1646.1,0.05]
[1744711486873,11.46959,1646.2,1646.1,0.25]
[1744711487877,5.395,1646.2,1646.1,0.59020226]
[1744711488751,11.46959,1646.2,1646.1,0.59020226]
[1744711489547,5.395,1646.2,1646.1,0.25]
[1744711489760,13.380312,1646.2,1646.1,0.25]
[1744711489955,12.616512,1646.2,1646.1,0.25]
[1744711492350,13.437012,1646.2,1646.1,0.05]
[1744711492576,13.437012,1646.2,1646.1,0.25]
[1744711494354,13.437012,1646.2,1646.1,0.05]
[1744711497054,13.437012,1646.2,1646.1,0.25]
[1744711500569,12.616512,1646.2,1646.1,0.25]
[1744711501483,13.422412,1646.2,1646.1,0.25]
[1744711502891,13.422412,1646.2,1646.1,0.05]
[1744711503591,13.386712,1646.2,1646.1,0.05]
[1744711505122,6.8459,1645.9,1645.7,0.2]
[1744711505264,12.92178,1645.9,1645.8,0.2]
[1744711505470,18.28078,1645.9,1645.8,0.2]
[1744711505768,6.07607,1645.8,1645.7,0.2]
[1744711506817,11.4347,1645.9,1645.7,0.2]
[1744711506969,11.4347,1645.9,1645.8,0.2]
[1744711508280,5.359,1645.9,1645.8,0.2]
[1744711508871,48.1921,1646.1,1646.0,0.2]
[1744711508872,47.381,1646.1,1646.0,0.2]
[1744711509072,47.381,1646.1,1646.0,1.0256]
[1744711509073,58.81496,1646.1,1646.0,1.0256]
[1744711509386,58.81496,1646.1,1646.0,0.2]
[1744711509604,64.45687451,1646.1,1646.0,0.2]
[1744711510799,6.07533,1646.0,1645.9,0.2]
[1744711511001,6.0757,1645.9,1645.8,0.2]
[1744711511406,6.82843,1646.0,1645.8,0.54046783]
[1744711511608,6.07533,1646.0,1645.8,0.54046783]
[1744711511815,12.2202896,1646.0,1645.9,0.2]
[1744711512014,64.45696451,1646.1,1646.0,0.2]
[1744711513351,58.81505,1646.1,1646.0,0.2]
[1744711515000,58.81505,1646.1,1645.8,0.8137]
[1744711515001,6.07533,1646.0,1645.9,0.2]
[1744711515204,6.0757,1645.9,1645.8,0.2]
[1744711515447,7.66216516,1645.9,1645.8,0.2]
[1744711516705,7.66216516,1645.9,1645.8,0.54087366]
[1744711518151,7.66216516,1645.9,1645.8,0.2]
[1744711518737,12.70232,1645.8,1645.7,0.2]
[1744711518938,15.65604162,1645.8,1645.7,0.2]
[1744711519242,6.07681,1645.6,1645.5,0.2]
[1744711519582,11.43681,1645.6,1645.5,0.2]
[1744711519932,11.43681,1645.6,1645.5,0.5409471]
[1744711521465,5.36,1645.6,1645.5,0.5409471]
[1744711521781,11.43681,1645.6,1645.5,0.5409471]
[1744711523285,12.13891883,1645.6,1645.5,0.5409471]
[1744711523640,12.94121883,1645.6,1645.5,0.5409471]
[1744711523977,6.07718,1645.5,1645.4,0.2]
[1744711524770,12.15454,1645.5,1645.4,0.2]
[1744711526591,5.36,1645.6,1645.5,0.2]
[1744711526936,5.36,1645.6,1645.5,0.54055015]
[1744711527242,5.36,1645.6,1645.5,6.61773015]
[1744711527446,5.36,1645.6,1645.5,0.54055015]
[1744711527850,11.43681,1645.6,1645.5,0.54055015]
[1744711529253,13.188148,1645.6,1645.5,0.54055015]
[1744711530451,13.188148,1645.6,1645.5,0.2]
[1744711530977,6.07718,1645.5,1645.4,0.2]
[1744711534074,6.88858,1645.5,1645.4,0.2]
[1744711534371,6.07754,1645.4,1645.3,0.2]
[1744711534573,6.07828,1645.2,1645.1,0.05]
[1744711534889,5.336,1645.2,1645.1,0.25]
[1744711535045,5.336,1645.2,1645.1,6.32865]
[1744711535245,5.336,1645.2,1645.1,0.25]
[1744711535452,7.085239,1645.2,1645.1,0.59045984]
[1744711535671,5.336,1645.2,1645.1,6.66910984]
[1744711535864,5.336,1645.2,1645.1,7.48810984]
[1744711537045,5.336,1645.2,1645.1,0.59045984]
[1744711537271,11.41428,1645.2,1645.1,0.59045984]
[1744711538047,11.41428,1645.2,1645.1,0.25]
[1744711538250,13.163512,1645.2,1645.1,0.25]
[1744711539350,13.163512,1645.2,1645.1,0.61310694]
[1744711540548,5.336,1645.2,1645.1,7.50985694]
[1744711540858,5.336,1645.2,1645.1,7.85016203]
[1744711541055,5.336,1645.2,1645.1,1.77151203]
[1744711541379,5.336,1645.2,1645.1,7.85016203]
[1744711544149,5.336,1645.2,1645.1,15.50688066]
[1744711544353,47.396,1645.8,1645.7,0.2]
[1744711544571,52.732,1645.8,1645.7,6.63844639]
[1744711544893,52.732,1645.8,1645.7,0.56200639]
[1744711545188,52.732,1645.8,1645.7,7.42944639]
[1744711545354,52.732,1645.8,1645.7,7.76975148]
[1744711545552,52.732,1645.8,1645.7,1.69331148]
[1744711545752,52.732,1645.8,1645.7,7.76975148]
[1744711547451,5.336,1645.8,1645.7,10.7234731]
[1744711547677,5.336,1645.8,1645.7,13.78423236]
[1744711547991,0.7825,1646.4,1646.3,0.2]
[1744711548155,5.335,1646.4,1646.3,0.2]
[1744711548351,5.335,1646.4,1646.3,6.63233381]
[1744711548799,5.335,1646.4,1646.3,6.60982054]
[1744711549003,5.335,1646.4,1646.3,7.40082054]
[1744711549304,5.335,1646.4,1646.3,7.74112563]
[1744711550265,6.07244,1646.8,1646.3,7.62062725]
[1744711550493,5.335,1646.7,1646.6,6.25060673]
[1744711550806,5.335,1646.7,1646.6,6.60863594]
[1744711551303,5.335,1646.7,1646.6,9.60863594]
[1744711551873,5.335,1646.7,1646.6,10.40873594]
[1744711552274,5.335,1646.7,1646.6,10.74751517]
[1744711553305,11.40567,1647.0,1646.9,0.17748673]
[1744711553982,11.40567,1647.0,1646.9,0.51834794]
[1744711554183,11.40564,1647.0,1646.9,0.51834794]
[1744711554419,13.153348,1647.0,1646.9,0.51834794]
[1744711554720,5.334,1647.0,1646.9,0.51834794]
[1744711555006,11.40564,1647.0,1646.9,0.51834794]
[1744711557613,12.21614,1647.0,1646.9,0.51834794]
[1744711557819,12.21614,1647.0,1646.9,0.17748673]
[1744711559075,12.21614,1647.0,1646.9,0.51657332]
[1744711559274,14.044898,1647.0,1646.9,0.17748673]
[1744711559475,14.044898,1647.0,1646.9,0.51657332]
[1744711561116,13.234398,1647.0,1646.9,0.51657332]
[1744711561509,13.234398,1647.0,1646.9,0.17748673]
[1744711561881,13.234398,1647.0,1646.9,0.51657332]
[1744711562076,13.234398,1647.0,1646.9,0.17748673]
[1744711562306,13.234398,1647.0,1646.9,0.51657332]
[1744711562479,13.234398,1647.0,1646.9,0.17748673]
[1744711563515,6.07201,1646.9,1646.8,0.17748673]
[1744711563680,6.07201,1646.9,1646.2,0.45592192]
[1744711563681,6.86558,1646.8,1646.7,0.17748673]
[1744711564107,6.07275,1646.7,1646.6,0.17748673]
[1744711564302,6.07312,1646.6,1646.5,0.17748673]
[1744711564480,13.273,1646.6,1646.5,0.17748673]
[1744711566384,5.92348,1646.5,1646.4,0.17748673]
[1744711568623,6.07385,1646.4,1646.3,0.17748673]
[1744711568808,6.07422,1646.3,1646.2,0.17748673]
[1744711569415,6.07422,1646.3,1646.2,0.51530573]
[1744711569615,7.97663,1646.3,1646.2,0.51530573]
[1744711571490,11.68945162,1646.3,1646.2,0.337819]
[1744711571695,6.07607,1645.8,1645.7,0.17748673]
[1744711571895,6.07681,1645.6,1645.5,0.17748673]
[1744711572626,6.07681,1645.6,1645.5,0.52240719]
[1744711572792,6.07681,1645.6,1645.5,0.34492046]
[1744711572992,6.07681,1645.6,1645.5,0.52240719]
[1744711573322,6.07514,1646.1,1645.7,6.25377673]
[1744711573323,0.7608,1646.1,1645.7,6.25377673]
[1744711573521,5.379,1646.0,1645.9,0.17748673]
[1744711574410,5.379,1646.0,1645.9,0.53243247]
[1744711574803,5.379,1646.0,1645.9,6.60813247]
[1744711575003,11.45433,1646.0,1645.9,0.53243247]
[1744711575215,13.207261,1646.0,1645.9,0.53243247]
[1744711576414,13.981961,1646.0,1645.9,0.53243247]
[1744711576618,13.981961,1646.0,1645.9,0.35494574]
[1744711576796,6.0757,1645.9,1645.8,0.17748673]
[1744711576998,6.07607,1645.8,1645.6,0.17748673]
[1744711577193,6.07681,1645.6,1645.5,0.17748673]
[1744711577439,11.45581,1645.6,1645.5,0.17748673]
[1744711577795,11.45581,1645.6,1645.5,0.50045001]
[1744711579509,11.45581,1645.6,1645.5,0.17748673]
[1744711579702,11.45581,1645.6,1645.5,0.50045001]
[1744711579903,12.13395669,1645.6,1645.5,0.17748673]
[1744711580132,12.13395669,1645.6,1645.5,0.50045001]
[1744711580308,12.13395669,1645.6,1645.5,0.17748673]
[1744711580504,12.13395669,1645.6,1645.5,0.50045001]
[1744711580710,11.45581,1645.6,1645.5,0.17748673]
[1744711580908,6.07606,1645.9,1645.6,0.17748673]
[1744711581136,5.38,1646.0,1645.6,0.17748673]
[1744711581344,11.45534,1646.0,1645.9,0.17748673]
[1744711582230,11.45534,1646.0,1645.9,0.50045001]
[1744711582426,5.38,1646.0,1645.9,0.50045001]
[1744711582639,11.45533,1646.0,1645.9,0.50045001]
[1744711582805,5.38,1646.0,1645.9,0.17748673]
[1744711583005,5.38,1646.0,1645.9,0.50045001]
[1744711583431,5.38,1646.0,1645.9,6.57615001]
[1744711585140,5.38,1646.0,1645.9,0.50045001]
[1744711587127,53.44225,1646.3,1645.9,0.50045001]
[1744711587128,53.44223,1646.3,1646.2,0.17748673]
[1744711587318,53.44223,1646.3,1646.2,0.96568673]
[1744711587319,58.82223,1646.3,1646.2,0.96568673]
[1744711587646,52.748,1646.3,1646.2,0.49706676]
[1744711587840,58.82222,1646.3,1646.2,0.49706676]
[1744711588858,52.748,1646.3,1646.2,0.49706676]
[1744711589020,58.82222,1646.3,1646.2,0.49706676]
[1744711589567,52.748,1646.3,1646.2,0.49706676]
[1744711589744,52.748,1646.3,1646.2,7.22884944]
[1744711590328,52.748,1646.3,1646.2,8.01844944]
[1744711591854,52.748,1646.3,1646.2,8.35759375]
[1744711593019,5.38,1646.3,1646.2,8.35759375]
[1744711594435,5.38,1646.3,1646.2,11.35759375]
[1744711595749,5.38,1646.3,1646.2,8.35759375]
[1744711596060,5.38,1646.3,1646.2,2.28300375]
[1744711596233,5.38,1646.3,1646.2,8.35759375]
[1744711598526,5.38,1646.3,1646.2,11.35759375]
[1744711598922,6.07201,1646.9,1646.8,0.17748673]
[1744711599127,11.47601,1646.9,1646.8,0.17748673]
[1744711599553,11.47601,1646.9,1646.8,0.48903536]
[1744711599762,11.47601,1646.9,1646.8,0.17748673]
[1744711599933,11.47601,1646.9,1646.8,0.48903536]
[1744711600130,11.47601,1646.9,1646.8,0.17748673]
[1744711600861,11.47601,1646.9,1646.8,0.48903536]
[1744711601060,11.47601,1646.9,1646.8,0.17748673]
[1744711601227,11.47601,1646.9,1646.8,0.48903536]
[1744711602429,11.47601,1646.9,1646.8,0.17748673]
[1744711602634,11.47601,1646.9,1646.8,0.48903536]
[1744711603656,11.47601,1646.9,1646.8,0.17748673]
[1744711604434,5.404,1646.9,1646.8,6.56141536]
[1744711604633,5.404,1646.9,1646.8,8.35781969]
[1744711605069,5.404,1646.9,1646.8,2.28543969]
[1744711605362,5.404,1646.9,1646.8,1.53483969]
[1744711605935,5.404,1646.9,1646.8,10.60721969]
[1744711607045,5.404,1646.9,1646.8,1.53483969]
[1744711607451,5.404,1646.9,1646.8,7.60721969]
[1744711607966,5.404,1646.9,1646.8,10.60721969]
[1744711608369,5.404,1646.9,1646.8,11.39741969]
[1744711608931,5.403,1647.2,1647.0,6.07149]
[1744711609135,5.403,1647.2,1647.1,6.24875673]
[1744711609360,5.403,1647.2,1647.1,6.55354567]
[1744711609547,5.403,1647.2,1647.1,7.32654567]
[1744711610848,5.403,1647.2,1647.1,10.32654567]
[1744711611140,5.403,1647.2,1647.1,10.66557895]
[1744711611734,5.403,1647.2,1647.1,11.12647991]
[1744711612272,59.50138,1647.7,1647.6,0.17748673]
[1744711612487,64.90438,1647.7,1647.6,0.17748673]
[1744711612637,64.90438,1647.7,1647.6,0.4801641]
[1744711613038,58.83516,1647.7,1647.6,0.4801641]
[1744711613272,52.766,1647.7,1647.6,0.17748673]
[1744711613469,52.766,1647.7,1647.6,0.8022074]
[1744711613672,52.766,1647.7,1647.6,1.1029427]
[1744711614042,52.766,1647.7,1647.6,7.9249727]
[1744711615950,5.403,1647.7,1647.6,7.9249727]
[1744711616774,5.402,1648.0,1647.9,0.17748673]
[1744711616969,5.402,1648.0,1647.9,6.8704234]
[1744711617177,5.402,1648.0,1647.9,1.10030637]
[1744711618074,12.29116,1648.0,1647.9,0.4756897]
[1744711618374,12.29116,1648.0,1647.9,0.29820297]
[1744711618577,12.29116,1648.0,1647.5,0.17748673]
[1744711618578,6.89026,1647.7,1647.5,0.17748673]
[1744711618781,11.47043,1647.6,1647.4,0.17748673]
[1744711618981,6.891,1647.5,1647.4,0.17748673]
[1744711620180,6.07017,1647.4,1647.3,0.17748673]
[1744711620377,6.85073,1647.3,1647.2,0.17748673]
[1744711621444,9.02389162,1647.4,1646.5,10.96648706]
[1744711621445,6.07164,1647.0,1646.5,8.82516544]
[1744711621759,11.42301,1646.9,1646.8,0.17748673]
[1744711622144,13.251575,1646.9,1646.8,0.17748673]
[1744711622344,13.251575,1646.9,1646.3,0.8124]
[1744711622345,6.07254,1646.8,1646.3,0.8124]
[1744711622575,6.07339,1646.6,1646.5,0.17748673]
[1744711625072,6.83689,1646.6,1646.5,0.17748673]
[1744711626273,6.07348,1646.5,1646.4,0.17748673]
[1744711626588,12.109169,1646.5,1646.4,0.17748673]
[1744711626793,6.07385,1646.4,1646.2,0.17748673]
[1744711626967,6.87645,1646.4,1646.3,0.17748673]
[1744711627363,6.07422,1646.3,1646.2,0.17748673]
[1744711627563,6.07496,1646.1,1646.0,0.17748673]
[1744711627762,6.0757,1645.9,1645.8,0.17748673]
[1744711628385,6.0757,1645.9,1645.8,0.48710406]
[1744711628686,6.0757,1645.9,1645.8,0.17748673]
[1744711628888,0.8071,1646.0,1645.9,0.17748673]
[1744711629095,0.8141,1646.2,1646.0,0.17748673]
[1744711629257,13.444087,1646.3,1646.1,0.17748673]
[1744711629462,11.42859,1646.2,1646.1,0.17748673]
[1744711629974,5.354,1646.2,1646.1,0.17748673]
[1744711630574,0.683689,1646.5,1646.1,0.17748673]
[1744711630777,6.07283,1646.7,1646.6,0.17748673]
[1744711630988,12.724593,1646.7,1646.6,0.17748673]
[1744711633284,6.07312,1646.6,1646.5,0.17748673]
[1744711633680,12.724593,1646.7,1646.6,0.17748673]
[1744711633996,11.42675,1646.7,1646.6,0.17748673]
[1744711634502,5.354,1646.7,1646.6,0.17748673]
[1744711634802,6.07312,1646.6,1646.5,0.17748673]
[1744711634971,6.07348,1646.5,1646.4,0.17748673]
[1744711635163,6.07385,1646.4,1646.3,0.17748673]
[1744711635367,6.07348,1646.5,1646.4,0.17748673]
[1744711636170,6.07348,1646.5,1646.4,0.43467027]
[1744711637166,12.18128,1646.7,1646.5,0.17748673]
[1744711637368,5.354,1646.7,1646.6,0.17748673]
[1744711637769,5.354,1646.7,1646.6,1.23974624]
[1744711637968,5.354,1646.7,1646.6,1.97105586]
[1744711639499,5.354,1646.7,1646.6,8.04417586]
[1744711639977,5.354,1646.7,1646.6,1.97105586]
[1744711640171,5.354,1646.7,1646.6,0.43534624]
[1744711640594,5.354,1646.7,1646.6,6.50846624]
[1744711640790,5.354,1646.7,1646.6,0.43534624]
[1744711641467,5.354,1646.7,1646.6,6.50846624]
[1744711641668,5.354,1646.7,1646.6,10.27016624]
[1744711642802,5.354,1646.7,1646.6,7.27016624]
[1744711643205,5.354,1646.7,1646.6,1.19704624]
[1744711643402,5.354,1646.7,1646.6,7.27016624]
[1744711643587,5.354,1646.7,1646.6,10.27016624]
[1744711644182,5.354,1646.7,1646.6,10.60833311]
[1744711644909,12.14234,1647.2,1647.1,0.17748673]
[1744711645074,17.49534,1647.2,1647.1,0.17748673]
[1744711645399,11.42408,1647.2,1647.1,0.43222035]
[1744711645609,11.42408,1647.2,1647.1,0.17748673]
[1744711645610,5.353,1647.2,1647.1,0.17748673]
[1744711645805,5.353,1647.2,1647.1,6.50349035]
[1744711646792,5.353,1647.2,1647.1,10.29739035]
[1744711647570,5.353,1647.2,1647.1,10.35809632]
[1744711647771,47.363,1647.4,1647.3,6.24801673]
[1744711648308,47.363,1647.4,1647.3,6.50123016]
[1744711649773,47.363,1647.4,1647.3,0.43070016]
[1744711652815,54.19687,1647.4,1647.3,0.43070016]
[1744711653683,60.3418296,1647.4,1647.3,0.43070016]
[1744711654282,54.2716596,1647.4,1647.3,0.43070016]
[1744711654480,47.363,1647.4,1647.3,0.43070016]
[1744711654881,53.43317,1647.4,1647.3,0.43070016]
[1744711657808,6.07053,1647.3,1647.2,0.17748673]
[1744711658121,6.8346,1647.2,1647.1,0.17748673]
[1744711658323,6.07127,1647.1,1647.0,0.17748673]
[1744711658528,6.07164,1647.0,1646.9,0.17748673]
[1744711659315,6.07164,1647.0,1646.9,0.38128073]
[1744711659912,6.07164,1647.0,1646.9,0.203794]
[1744711660120,6.07201,1646.9,1646.8,0.17748673]
[1744711661338,6.89051,1646.9,1646.7,0.17748673]
[1744711661537,6.679581,1646.8,1646.7,0.17748673]
[1744711661713,6.07366,1646.5,1646.3,0.17748673]
[1744711661918,12.25365,1646.4,1646.3,0.17748673]
[1744711662340,12.25365,1646.4,1646.3,0.3642979]
[1744711662554,14.086381,1646.4,1646.3,0.3642979]
[1744711662938,14.086381,1646.4,1646.3,0.17748673]
[1744711663339,8.012531,1646.4,1646.3,0.17748673]
[1744711663552,14.086381,1646.4,1646.3,0.3642979]
[1744711663713,14.086381,1646.4,1646.3,0.17748673]
[1744711663908,14.086381,1646.4,1646.3,0.3642979]
[1744711668531,14.086381,1646.4,1646.3,0.17748673]
[1744711668712,14.086381,1646.4,1646.3,0.3642979]
[1744711669813,5.367,1646.4,1646.3,6.4385179]
[1744711670013,5.367,1646.4,1646.3,0.3642979]
[1744711670341,47.353,1646.5,1646.4,0.17748673]